Workbook

Sheet Hinweise
A1: Hinweise:
A3: - | B3: Positionen mit 0,00€ nicht löschen, sondern bestehen lassen -> es könnte sein das diese Posten in den folgenden Jahren wieder benötigt werden und auch damit nicht in Vergessenheit gerät was es mal gab

Sheet Deckblatt
A1: Haushaltsplan 2018 StudentINNENschaft HTW Dresden | C1: Einnahmen | F1: Ausgaben
C2: PLAN | D2: IST | E2: SALDO | F2: PLAN | G2: IST | H2: SALDO
A3: Selbstverwaltung | C3: ='Detailblatt I'!J60 -> 7250 | D3: ='Detailblatt I'!K60-'Detailblatt I'!K53+'Detailblatt I'!T53 -> 21299.47 | E3: =D3-C3 -> 14049.47 | F3: ='Detailblatt I'!M60 -> 160736 | G3: ='Detailblatt I'!N60 -> 131373.36 | H3: =(F3-G3) -> 29362.64
A4: Beitragseinnahmen der Studenten | C4: ='Detailblatt II'!F16 -> 154200 | D4: ='Detailblatt II'!G16 -> 151237.5 | E4: =D4-C4 -> -2962.5 | F4: ='Detailblatt II'!I16 -> 0 | G4: ='Detailblatt II'!J16 -> 3.33 | H4: =(F4-G4) -> -3.33
A5: Zinsen | C5: ='Detailblatt II'!F22 -> 0 | D5: ='Detailblatt II'!G22 -> 0 | E5: 0 | F5: ='Detailblatt II'!I22 -> 0 | G5: ='Detailblatt II'!J22 -> 0 | H5: =(F5-G5) -> 0
A6: Entnahme(=Einnahme) Ansparen(=Ausgabe) | B6: von Vermögen | C6: ='Detailblatt II'!I23 -> 737 | D6: ='Detailblatt II'!J23 -> 0 | E6: -737 | F6: ='Detailblatt II'!F23 -> 0 | G6: ='Detailblatt II'!G23 -> 0 | H6: =(F6-G6) -> 0
A7: angeordnete Vermögensänderung lt. FO | C7: ='Detailblatt II'!F21 -> 0 | E7: 0 | F7: ='Detailblatt II'!I21 -> 0 | H7: =(F7-G7) -> 0
A8: Zurückführung an Studenten | C8: ='Detailblatt I'!R60 -> 0 | D8: ='Detailblatt I'!R60 -> 0 | E8: =D8-C8 -> 0
A9: Gesamt: | C9: =SUM(C3:C8) -> 162187 | D9: 172536.97 | E9: 10349.97 | F9: 160736 | G9: 131376.69 | H9: 29359.31
A10: Berechnung des Semesterbeitrag:
B11: Planausgaben: | C11: =F9 -> 160736
A12: - | B12: Planeinnahmen: | C12: =C3 -> 7250
A13: - | B13: Entnahmen: | C13: =C6 -> 737
A14: - | B14: angeordnete VÄ Entnahme: | C14: =C7 -> 0 | E14: Letzte Aktualisierung (Datum/Uhrzeit): | H14: =TODAY() -> 2019-05-17 | I14: =NOW() -> 43602.47143
A15: - | B15: Zurückführung: | C15: =C8 -> 0
A16: = | B16: Gesamt: | C16: =C11-C12-C13-C14-C15 -> 152749
A17: / | B17: Studenten/Jahr: | C17: ='Detailblatt II'!D14+('Detailblatt II'!D15/6*4) -> 7466.666667
A18: = | B18: Stud./Semester: | C18: =(C16-'Detailblatt II'!F13)/C17 -> 18.31459821 | D18: Semesterbeitrag pro Student

Sheet Detailblatt I
A1: Detailblatt I | E1: Jahr - | F1: 2018 | J1: Einnahmen | M1: Ausgaben | P1: nachrangig verwendbares Vj. Budget | Q1: davon verwendet | R1: Zuführung "Fortgeschr. finanz. Mittel" | S1: Übertrag ins nächste HH-Jahr
J2: PLAN | K2: IST | L2: SALDO | M2: PLAN | N2: IST | O2: SALDO
A3: Selbstverwaltung der Studentinnen- und Studentenschaft HTW Dresden
A4: Studentinnen- und Studentenrat
A5: Sachkonto
A6: 2749 | B6: Angestellte | C6: AAG | K6: 495.23 | L6: =K6 -> 495.23
A7: 4120 | C7: Gehälter | M7: 68250 | N7: 56371.66 | O7: =M7-SUM(N7:N10)+L6 -> -350.33
A8: 4130 | C8: gesetzl. sozial. Aufw. | N8: 11983.68
A9: 4138 | C9: Beitrag BG | N9: 93.34
A10: 4956 | C10: Acon GmbH (Lohnabr.) | N10: 646.88
A11: 4110 | B11: (AE) Aufwandsentschädigungen | M11: 18000 | N11: 7229.34 | O11: =M11-N11 -> 10770.66
A12: 4640 | B12: Kaffee & Verpflegung | M12: 1500 | N12: 987.52 | O12: 512.48
A13: 4909 | B13: Sprecherinnen und Sprecher | M13: 0 | N13: 0 | O13: 0
A14: 4930 | B14: Büro- und Verbrauchsmaterialien | M14: 500 | N14: 195.2 | O14: 304.8 | P14: 0 | Q14: =IF(O14<0,IF(P14>0,O14*(-1),0),0) -> 0 | R14: =IF(OR(Q14>P14,O14+P14<0),makro1(),ROUNDDOWN(P14-Q14,-1)) -> 0 | S14: =IF(O14>0,ROUNDDOWN(O14,-1),0) -> 300
A15: 4943 | B15: Teilnahme Konferenzen | M15: 1500 | N15: 758.3 | O15: 741.7 | P15: 0 | Q15: =IF(O15<0,IF(P15>0,O15*(-1),0),0) -> 0 | R15: =IF(OR(Q15>P15,O15+P15<0),makro1(),ROUNDDOWN(P15-Q15,-1)) -> 0 | S15: =IF(O15>0,ROUNDDOWN(O15,-1),0) -> 740
A16: 4944 | B16: Teilnahme Schulungen | M16: 500 | N16: 135 | O16: 365 | P16: 0 | Q16: =IF(O16<0,IF(P16>0,O16*(-1),0),0) -> 0 | R16: =IF(OR(Q16>P16,O16+P16<0),makro1(),ROUNDDOWN(P16-Q16,-1)) -> 0 | S16: =IF(O16>0,ROUNDDOWN(O16,-1),0) -> 360
A17: 4945 | B17: Durchführung Konferenzen | M17: ='Schulungen & Konferenzen'!F19 -> 3000 | N17: ='Schulungen & Konferenzen'!G19 -> 1000 | O17: 2000 | R17: ='Schulungen & Konferenzen'!K19 -> 0 | S17: ='Schulungen & Konferenzen'!L19 -> 1500
A18: 4946 | B18: Durchführung Schulungen | M18: ='Schulungen & Konferenzen'!F12 -> 4000 | N18: ='Schulungen & Konferenzen'!G12 -> 419.33 | O18: 3580.67 | R18: ='Schulungen & Konferenzen'!K12 -> 0 | S18: ='Schulungen & Konferenzen'!L12 -> 3300
A19: 4950 | B19: Rechts- und Beratungskosten | M19: 500 | N19: 0 | O19: 500 | P19: 0 | Q19: =IF(O19<0,IF(P19>0,O19*(-1),0),0) -> 0 | R19: =IF(OR(Q19>P19,O19+P19<0),makro1(),ROUNDDOWN(P19-Q19,-1)) -> 0 | S19: =IF(O19>0,ROUNDDOWN(O19,-1),0) -> 500
A20: 4989 | B20: Ersatz- und Neuanschaffung | M20: 4000 | N20: 3012.75 | O20: 987.25 | P20: 0 | Q20: =IF(O20<0,IF(P20>0,O20*(-1),0),0) -> 0 | R20: =IF(OR(Q20>P20,O20+P20<0),makro1(),ROUNDDOWN(P20-Q20,-1)) -> 0 | S20: =IF(O20>0,ROUNDDOWN(O20,-1),0) -> 980
A21: Zwischensumme: | K21: =SUM(K6) -> 495.23 | L21: =SUM(L6) -> 495.23 | M21: =SUM(M6:M20) -> 101750 | N21: =SUM(N6:N20) -> 82833 | O21: =SUM(O6:O20) -> 19412.23 | P21: =SUM(P15:P16,P19:P20) -> 0 | Q21: =SUM(Q15:Q16,Q19:Q20) -> 0 | R21: =SUM(R15:R20) -> 0 | S21: =SUM(S14:S20) -> 7680
A22: Referate
A23: 4955/4970 | B23: Finanzen | J23: =Finanzen!D5 -> 0 | K23: =Finanzen!E5 -> 0 | L23: =K23-J23 -> 0 | M23: =Finanzen!G5 -> 1400 | N23: =Finanzen!H5 -> 1376.42 | O23: =M23-N23 -> 23.58
A24: 4961 | B24: Hochschulpolitik | J24: =Hochschulpolitik!C8 -> 0 | K24: =Hochschulpolitik!D8 -> 0 | L24: =K24-J24 -> 0 | M24: =Hochschulpolitik!F8 -> 3500 | N24: =Hochschulpolitik!G8 -> 500 | O24: 3000 | R24: =Hochschulpolitik!K8 -> 0 | S24: =Hochschulpolitik!L8 -> 3000
A25: 4962 | B25: Internationales | J25: =Internationales!C6 -> 0 | K25: =Internationales!D6 -> 0 | L25: 0 | M25: =Internationales!F6 -> 1050 | N25: =Internationales!G6 -> 85.18 | O25: 964.82 | R25: =Internationales!K6 -> 0 | S25: =Internationales!L6 -> 960
A26: 4963 | B26: Kultur | J26: =Kultur!C10 -> 6350 | K26: =Kultur!D10 -> 6595.55 | L26: 245.55 | M26: =Kultur!F10 -> 16000 | N26: =Kultur!G10 -> 10586.95 | O26: 5413.05 | R26: =Kultur!K10 -> 0 | S26: =Kultur!L10 -> 5440
A27: 4964 | B27: Öffentlichkeitsarbeit | J27: =Öffentlichkeitsarbeit!C8 -> 600 | K27: =Öffentlichkeitsarbeit!D8 -> 464 | L27: -136 | M27: =Öffentlichkeitsarbeit!F8 -> 4700 | N27: =Öffentlichkeitsarbeit!G8 -> 3031.28 | O27: 1668.72 | R27: =Öffentlichkeitsarbeit!K8 -> 0 | S27: =Öffentlichkeitsarbeit!L8 -> 1660
A28: 4965 | B28: Qualitätsmanagement | J28: =Qualitätsmanagement!C4 -> 0 | K28: =Qualitätsmanagement!D4 -> 0 | L28: 0 | M28: =Qualitätsmanagement!F4 -> 500 | N28: =Qualitätsmanagement!G4 -> 0 | O28: 500 | R28: =Qualitätsmanagement!K4 -> 0 | S28: =Qualitätsmanagement!L4 -> 0
A29: 4966 | B29: Soziales | J29: =Soziales!C6 -> 0 | K29: =Soziales!D6 -> 0 | L29: 0 | M29: =Soziales!F6 -> 1500 | N29: =Soziales!G6 -> 1000 | O29: 500 | R29: =Soziales!K6 -> 0 | S29: =Soziales!L6 -> 200
A30: 4967 | B30: Sport | J30: =Sport!C9 -> 0 | K30: =Sport!D9 -> 0 | L30: 0 | M30: =Sport!F9 -> 2400 | N30: =Sport!G9 -> 239.67 | O30: 2160.33 | R30: =Sport!K9 -> 0 | S30: =Sport!L9 -> 2150
A31: 4968 | B31: Studium | J31: =Studium!C6 -> 0 | K31: =Studium!D6 -> 0 | L31: 0 | M31: =Studium!F6 -> 500 | N31: =Studium!G6 -> 0 | O31: 500 | R31: =Studium!K6 -> 0 | S31: =Studium!L6 -> 0
A32: 4969 | B32: Studentische Selbstverwaltung & Organisation | J32: ='Studentische Verwaltung'!C12 -> 300 | K32: ='Studentische Verwaltung'!D12 -> 270 | L32: -30 | M32: ='Studentische Verwaltung'!F12 -> 2585 | N32: ='Studentische Verwaltung'!G12 -> 564.83 | O32: 2020.17 | R32: ='Studentische Verwaltung'!K12 -> 0 | S32: ='Studentische Verwaltung'!L12 -> 1990
B33: Ausschüsse des Studentinnen- und Studentenrates | J33: ='Detailblatt II'!F9 -> 0 | K33: ='Detailblatt II'!G9 -> 0 | L33: 0 | M33: 0 | N33: 0 | O33: 0
B34: weitere Vertretungen | J34: ='Detailblatt II'!F10 -> 0 | K34: ='Detailblatt II'!G10 -> 0 | L34: 0 | M34: 0 | N34: ='Detailblatt II'!J10 -> 0 | O34: 0
A35: Zwischensumme: | J35: =SUM(J23:J34) -> 7250 | K35: 7329.55 | L35: 79.55 | M35: 34135 | N35: =SUM(N23:N34) -> 17384.33 | O35: 16750.67 | R35: =SUM(R24:R32) -> 0 | S35: =SUM(S24:S32) -> 15400
A36: Ausschüsse der Studentinnen- und Studentenschaft
B37: weitere Ausschüsse der Studentinnen- und Studentenschaft | O37: =M37-N37 -> 0
B38: Wahlausschuss der Studentinnen- und Studentenschaft | O38: =M38-N38 -> 0
A39: 4959 | B39: (HFA) Härtefallausschuss der Studentinnen- & Studentenschaft | M39: 3000 | N39: 1418.9 | O39: =M39-N39 -> 1581.1
A40: Zwischensumme: | M40: =SUM(M37:M39) -> 3000 | N40: =SUM(N37:N39) -> 1418.9 | O40: =SUM(O37:O39) -> 1581.1
A41: Fachschaftsräte
A42: Anzahl der StudentINNen im: | F42: WiSe | G42: 18/19 | H42: SoSe | I42: 2018 | M42: Sockelbetrag für FSR: | O42: 250 | P42: vorraus. vorh. Geldmittel zum Vorjahresende | Q42: finanzielle Reserve zum Jahresbeginn | R42: Zuführung "Fortgeschr. finanz. Mittel" | S42: Übertrag ins nächste HH-Jahr | T42: Korrekturrechnung der Einnahmen abzgl. Semesterbeiträge
A43: gesamt: | F43: =SUM(F44:G51) -> 4809 | H43: =SUM(H44:I51) -> 4330 | M43: Geld was den FSR "zugeschrieben" wird.
A44: 4901 | B44: Bauingenieurwesen/Architektur | F44: 507 | H44: 485 | K44: 3367.93 | L44: =K44-J44 -> 3367.93 | M44: =ROUND(($O$42*2)+((F44+H44)*$D$52),-2) -> 1200 | N44: 3359.14 | O44: =M44-N44 -> -2159.14 | P44: =944.38+4362.19-88.35-192.64-5+21 -> 5041.58 | S44: =P44+K44-N44 -> 5050.37 | T44: =K44-1010.5-574 -> 1783.43
A45: 4902 | B45: Elektrotechnik | F45: 545 | H45: 469 | K45: 6201.29 | L45: =K45-J45 -> 6201.29 | M45: =ROUND(($O$42*2)+((F45+H45)*$D$52),-2) -> 1300 | N45: 5689.47 | O45: =M45-N45 -> -4389.47 | P45: 4484.04 | S45: 4995.86 | T45: =K45-1067.5-597.25 -> 4536.54
A46: 4903 | B46: Landbau/Landespflege/Chemie | F46: 734 | H46: 650 | K46: 4021.95 | L46: 4021.95 | M46: 1500 | N46: 3950.18 | O46: -2450.18 | P46: 3987.9 | S46: 4059.67 | T46: =K46-1351-727.75 -> 1943.2
A47: 4904 | B47: Informatik/Mathematik | F47: 682 | H47: 583 | K47: 2124.14 | L47: 2124.14 | M47: 1400 | N47: 1246.68 | O47: 153.32 | P47: 7333.31 | S47: 8210.77 | T47: =K47-1273-699.25 -> 151.89
A48: 4905 | B48: Maschinenbau | F48: 726 | H48: 667 | K48: 3546.14 | L48: 3546.14 | M48: 1500 | N48: 3004.24 | O48: -1504.24 | P48: 4999.37 | S48: 5541.27 | T48: =K48-1339-723.25 -> 1483.89
A49: 4906 | B49: Geoinformation | F49: 346 | H49: 315 | K49: =1232.58+769+480.25 -> 2481.83 | L49: 2481.83 | M49: 1000 | N49: 1943.34 | O49: -943.34 | P49: 3209.8 | S49: 3748.29 | T49: =K49-769-480.25 -> 1232.58
A50: 4907 | B50: Wirtschaftswissenschaften | F50: 1187 | H50: 1072 | K50: 5403.66 | L50: 5403.66 | M50: 2200 | N50: 5093.59 | O50: -2893.59 | P50: 6866.28 | S50: 7176.35 | T50: =K50-2030.5-1030 -> 2343.16
A51: 4908 | B51: Gestaltung | F51: 82 | H51: 89 | K51: 1065 | L51: 1065 | M51: 600 | N51: 739.06 | O51: -139.06 | P51: 2398.95 | S51: 2724.89 | T51: =K51-383.5-373-308.5 -> 0
A52: Betrag für FSR: | D52: 0.75 | E52: Absicherung Teilnahme BuFaTas: | I52: 0.5 | M52: =ROUND(($F$43+$H$43)*$I$52,-2) -> 4600 | N52: 0 | O52: 4600 | P52: 0 | Q52: =IF(O52<0,IF(P52>0,O52*(-1),0),0) -> 0 | R52: =IF(OR(Q52>P52,O52+P52<0),makro1(),ROUNDDOWN(P52-Q52,-1)) -> 0 | S52: =IF(O52>0,ROUNDDOWN(O52,-1),0) -> 4600
A53: Zwischensumme: | J53: =SUM(J44:J51) -> 0 | K53: =SUM(K44:K51) -> 28211.94 | L53: =SUM(L44:L51) -> 28211.94 | M53: =SUM(M44:M52) -> 15300 | N53: =SUM(N44:N52) -> 25025.7 | O53: =SUM(O44:O52) -> -9725.7 | P53: =SUM(P44:P51) -> 38321.23 | Q53: =SUM(Q44:Q51) -> 0 | R53: =SUM(R44:R51) -> 0 | S53: =SUM(S44:S52) -> 46107.47 | T53: =SUM(T44:T51) -> 13474.69
A54: Vertretungen der Studentinnen und Studenten
B55: Vertretungen der Studentinnen und Studenten in der Hochschule | O55: =M55-N55 -> 0
B56: Konferenz Sächsischer Studierendenschaft | M56: ='Detailblatt II'!I6 -> 2000 | N56: ='Detailblatt II'!J6 -> 1520.49 | O56: =M56-N56 -> 479.51
B57: Interessenvertretungen der Studentinnen- und Studentenschaft | M57: ='Detailblatt II'!I11 -> 4201 | N57: ='Detailblatt II'!J11 -> 3190.94 | O57: =M57-N57 -> 1010.06
B58: weitere Interessenvertetungen | M58: 350 | O58: =M58-N58 -> 350
A59: Zwischensumme: | M59: =SUM(M55:M58) -> 6551 | N59: =SUM(N55:N58) -> 4711.43 | O59: =SUM(O55:O58) -> 1839.57 | P59: ohne die FSR Budget`s
A60: Gesamtsumme: | J60: =SUM(J23:J34,J37:J39,J44:J51,J55:J58) -> 7250 | K60: =SUM(K6,K23:K34,K37:K39,K44:K51,K55:K58) -> 36036.72 | L60: =SUM(L6,L23:L34,L37:L39,L44:L51,L55:L58) -> 28786.72 | M60: =SUM(M6:M20,M23:M34,M37:M39,M44:M52,M55:M58) -> 160736 | N60: =SUM(N6:N20,N23:N34,N37:N39,N44:N52,N55:N58) -> 131373.36 | O60: =SUM(O6:O20,O23:O34,O37:O39,O44:O51,O55:O58) -> 25257.87 | P60: =P21 -> 0 | Q60: =Q21 -> 0 | R60: =R21+R35+R53 -> 0 | S60: =SUM(S53,S35,S21) -> 69187.47

Sheet Detailblatt II
A1: Detailblatt II | B1: Jahr - | C1: ='Detailblatt I'!F1 -> 2018 | E1: Häufigkeit | F1: Einnahmen | I1: Ausgaben
F2: PLAN | G2: IST | H2: SALDO | I2: PLAN | J2: IST | K2: SALDO
A3: Konferenz Sächsischer Studierendenschaften
A4: Finanzvereinbarung | E4: 1 | F4: 0 | H4: =G4-F4 -> 0 | I4: 1350 | J4: 1193.5 | K4: =I4-J4 -> 156.5
A5: Förderung der KSS (so auch Domain kss-sachsen.de) | E5: 1 | F5: 0 | H5: =G5-F5 -> 0 | I5: 650 | J5: =322.34+4.65 -> 326.99 | K5: =I5-J5 -> 323.01
D6: Zwischensumme: | F6: =SUM(F4:F5) -> 0 | G6: 0 | H6: 0 | I6: 2000 | J6: 1520.49 | K6: 479.51
A7: Interessenvertretungen der Studentinnen- und Studentenschaften
A8: faranto e.V. | F8: 0 | H8: =G8-F8 -> 0 | I8: 600 | J8: 514.44 | K8: =I8-J8 -> 85.56
A9: freier zusammenschluss von studentInnenschaften (fzs) e.V. | E9: 1 | F9: 0 | H9: =G9-F9 -> 0 | I9: 3600 | J9: 2676.5 | K9: =I9-J9 -> 923.5
A10: weitere | F10: 0 | H10: =G10-F10 -> 0 | I10: 1 | J10: 0 | K10: =I10-J10 -> 1
D11: Zwischensumme: | F11: =SUM(F8:F10) -> 0 | G11: 0 | H11: 0 | I11: 4201 | J11: 3190.94 | K11: 1010.06
A12: Beitragseinnahmen
A13: Anteilig WS 17/18 | B13: 10 | C13: x Studenten | D13: ='Detailblatt I'!F43 -> 4809 | E13: 1 | F13: =ROUND((($B$13*$D$13)/6)*2,-2) -> 16000 | G13: 16033.33 | H13: =G13-F13 -> 33.33 | I13: 0 | J13: 3.33 | K13: =I13-J13 -> -3.33
A14: SoSe 18 | B14: 18.5 | D14: 4300 | E14: 1 | F14: =ROUND($B$14*$D$14,-2) -> 79600 | G14: 77459.5 | H14: =G14-F14 -> -2140.5 | I14: 0 | J14: 0 | K14: =I14-J14 -> 0
A15: Anteilig WS 18/19 | B15: 18.5 | D15: 4750 | E15: 1 | F15: =ROUND((($B$15*$D$15)/6)*4,-2) -> 58600 | G15: 57744.67 | H15: =G15-F15 -> -855.33 | I15: 0 | J15: 0 | K15: =I15-J15 -> 0
D16: Zwischensumme: | F16: =SUM(F13:F15) -> 154200 | G16: 151237.5 | H16: -2962.5 | I16: 0 | J16: 3.33 | K16: -3.33
A17: Vermögen
A18: Verfügbare finanzielle Reserven | F18: ='fortgeschr. Mittel+Konto'!D7 -> 149812.53 | H18: =G18-F18 -> -149812.53 | I18: 0 | J18: 0 | K18: =I18-J18 -> 0
A19: Fortgeschriebene finanzielle Mittel | F19: ='Detailblatt I'!R60 -> 0 | H19: 0
A20: Übertrag ins nächste HH-Jahr | F20: ='Detailblatt I'!S60 -> 69187.47 | H20: -69187.47
A21: angeordnete Vermögensänderung lt. FO | F21: =IF(F18>F16,F18-F16,0) -> 0 | H21: 0 | I21: =IF(F18<Kapitalreserve!D17,Kapitalreserve!D17-F18,0) -> 0 | K21: =I21-J21 -> 0
A22: Zinsen auf Vermögen | F22: 0 | G22: 0 | H22: 0 | I22: 0 | J22: 0 | K22: =I22-J22 -> 0
A23: geplante Veränderung des Vermögens | F23: 0 | G23: 0 | H23: 0 | I23: 737 | J23: 0 | K23: =I23-J23 -> 737
D24: Zwischensumme: | F24: =SUM(F18:F23) -> 219000 | G24: 0 | H24: -219000 | I24: 737 | J24: 0 | K24: 737
A25: Gesamtsumme: | F25: =SUM(F16,F11,F6) -> 154200 | G25: =SUM(G16,G11,G6) -> 151237.5 | H25: -2962.5 | I25: =SUM(I16,I11,I6) -> 6201 | J25: 4714.76 | K25: 1486.24

Sheet fortgeschr. Mittel+Konto
A1: Fortgeschriebene finanzielle Mittel + Bankkontostand | C1: Jahr - | D1: ='Detailblatt I'!F1 -> 2018
F2: Nr. | G2: voraussichtliche Ausgaben | I2: Saldo
B3: Zweck/Tätigkeit | C3: erstellt am: | D3: Saldo | F3: 1. | G3: Personal (Nov.+Dez. inkl. 13.Gehalt, ACON-Gebühren) | I3: 1000
B4: Bankkontostand bei Haushaltsplanerstellung | D4: 220000
A5: - | B5: abzgl. voraussichtliche Ausgaben | D5: =I22*(-1) -> -1000 | F5: 2. | G5: Finanzbeschlüsse aktuell noch nicht umgesetzt
A6: - | B6: Übertrag ins nächste HH-Jahr | D6: ='Detailblatt I'!S60 -> 69187.47
A7: = | B7: ins nächste Jahr zu übernehmen | D7: =D4+D5-D6 -> 149812.53 | F7: 3. | G7: voraussichtliche AE
F8: 4. | G8: offene Härtefallanträge
F9: 5. | G9: Software-Abos (AGENDA etc.)
F10: 6. | G10: Kosten für Wartung (Drucker etc.)
F11: 7. | G11: Kontoführung
F12: 8. | G12: Kino in der HTW & Co.
F13: 9. | G13: Kosten für Wahlen
F14: 10. | G14: Kaffeebestellung(en)
F15: 11. | G15: Ersatz- & Neuanschaffung
F16: 12. | G16: wahrscheinlich noch zu beschließende Finanzanträge
F18: 13.
F19: 14.
F20: 15.
F21: 16.
F22: = | G22: Gesamtsumme: | I22: =SUM(I3:I21) -> 1000

Sheet Kapitalreserve
A1: Mindestkapitalreserve | D1: Jahr - | E1: ='Detailblatt I'!F1 -> 2018 | F1: Berechnungsgrundlage ist die aktuelle Finanzordnung (FO)
G2: - alle vertraglich festgeschriebenen Vereinbarungen müssen durch die Kapitalreserve abgedeckt sein
A3: vertragliche Vereinbarungen | D3: Planausgaben
A4: Studentinnen- und Studentenrat
A5: Lohnkosten (Detailblatt I - Zelle M7) | D5: ='Detailblatt I'!M7 -> 68250
A6: …aktuell ohne Belegung…
A7: …aktuell ohne Belegung…
A8: Referat Finanzen
A9: Kontoführungsgebühren | D9: =Finanzen!G3 -> 400
A10: Buchhaltungssoftware AGENDA | D10: =Finanzen!G4 -> 1000
A11: …aktuell ohne Belegung…
A12: Referat Selbstverwaltung & Organisation
A13: Domains | D13: ='Studentische Verwaltung'!F4 -> 50
A14: laufende Kosten (Druck, Wartung) | D14: ='Studentische Verwaltung'!F11 -> 1000
A15: …aktuell ohne Belegung…
A16: …aktuell ohne Belegung…
A17: Gesamt: | D17: =SUM(D5:E7,D9:E11,D13:E16) -> 70700

Sheet Schulungen & Konferenzen
A1: Schulungen | B1: Häufigkeit | C1: Einnahmen | F1: Ausgaben | I1: nachrangig verwendbares Vj. Budget | J1: davon verwendet | K1: Zuführung "Fortgeschr. finanz. Mittel" | L1: Übertrag ins nächste HH-Jahr
C2: PLAN | D2: IST | E2: SALDO | F2: PLAN | G2: IST | H2: SALDO
A3: Akkreditierung / Qualitätsmanagement | B3: 2 | C3: 0 | D3: 0 | E3: =D3-C3 -> 0 | F3: 900 | G3: 0 | H3: =F3-G3 -> 900 | I3: 0 | J3: =IF(H3<0,IF(I3>0,H3*(-1),0),0) -> 0 | K3: =IF(OR(J3>I3,H3+I3<0),makro1(),ROUNDDOWN(I3-J3,-1)) -> 0 | L3: =IF(H3>0,ROUNDDOWN(H3,-1),0) -> 900
A4: Sozialberatung (BaföG, Jobberatung) / Soziales | B4: 1 | C4: 0 | D4: 0 | E4: =D4-C4 -> 0 | F4: 300 | G4: 0 | H4: =F4-G4 -> 300 | I4: 0 | J4: =IF(H4<0,IF(I4>0,H4*(-1),0),0) -> 0 | K4: =IF(OR(J4>I4,H4+I4<0),makro1(),ROUNDDOWN(I4-J4,-1)) -> 0 | L4: =IF(H4>0,ROUNDDOWN(H4,-1),0) -> 300
A5: Schulungen studentische und akademische Selbstverwaltung (Studienprüfungsordnung) / Studium | B5: 1 | C5: 0 | D5: 0 | E5: 0 | F5: 400 | G5: 0 | H5: 400 | I5: 0 | J5: 0 | K5: =IF(OR(J5>I5,H5+I5<0),makro1(),ROUNDDOWN(I5-J5,-1)) -> 0 | L5: 400
A6: Prüfungsangelegenheiten / Studium | B6: 1 | C6: 0 | D6: 0 | E6: 0 | F6: 300 | G6: 0 | H6: 300 | I6: 0 | J6: 0 | K6: =IF(OR(J6>I6,H6+I6<0),makro1(),ROUNDDOWN(I6-J6,-1)) -> 0 | L6: 300
A7: pol. Bildung, Antidiskriminierung, Gender- / Hochschulpolitik | B7: 1 | C7: 0 | D7: 0 | E7: 0 | F7: 300 | G7: 0 | H7: 300 | I7: 0 | J7: 0 | K7: =IF(OR(J7>I7,H7+I7<0),makro1(),ROUNDDOWN(I7-J7,-1)) -> 0 | L7: 300
A8: Konstituierungsseminar (KoSe) / StuRa | B8: 1 | C8: 0 | D8: 0 | E8: 0 | F8: 1000 | G8: 399.25 | H8: 600.75 | I8: 0 | J8: 0 | K8: =IF(OR(J8>I8,H8+I8<0),makro1(),ROUNDDOWN(I8-J8,-1)) -> 0 | L8: 600
A9: Lern- und Informationsseminar (LuISe) / StuRa | B9: 1 | C9: 0 | D9: 0 | E9: 0 | F9: 400 | G9: 0 | H9: 400 | I9: 0 | J9: 0 | K9: =IF(OR(J9>I9,H9+I9<0),makro1(),ROUNDDOWN(I9-J9,-1)) -> 0 | L9: 400
A10: CLearance And Rapprochement (CLARA) / StuRa | B10: 1 | C10: 0 | D10: 0 | E10: 0 | F10: 100 | G10: 0 | H10: 100 | I10: 0 | J10: 0 | K10: =IF(OR(J10>I10,H10+I10<0),makro1(),ROUNDDOWN(I10-J10,-1)) -> 0 | L10: 100
A11: Quod licet Iovi, non licet bovi | B11: 1 | C11: 0 | D11: 0 | E11: 0 | F11: 300 | G11: 20.08 | H11: 279.92
A12: Gesamtsumme: | C12: =SUM(C3:C11) -> 0 | D12: 0 | E12: 0 | F12: 4000 | G12: 419.33 | H12: 3580.67 | I12: =SUM(I3:I10) -> 0 | J12: =SUM(J3:J10) -> 0 | K12: =SUM(K3:K10) -> 0 | L12: =SUM(L3:L10) -> 3300
A14: Konferenzen | B14: Häufigkeit | C14: Einnahmen | F14: Ausgaben | I14: nachrangig verwendbares Vj. Budget | J14: davon verwendet | K14: Zuführung "Fortgeschr. finanz. Mittel" | L14: Übertrag ins nächste HH-Jahr
C15: PLAN | D15: IST | E15: SALDO | F15: PLAN | G15: IST | H15: SALDO
A16: O.S.T. (Bereich Bund/Land) / Hochschulpolitik | B16: 1 | C16: 0 | D16: 0 | E16: =D16-C16 -> 0 | F16: 1500 | G16: 0 | H16: =F16-G16 -> 1500 | I16: 0 | J16: =IF(H16<0,IF(I16>0,H16*(-1),0),0) -> 0 | K16: =IF(OR(J16>I16,H16+I16<0),makro1(),ROUNDDOWN(I16-J16,-1)) -> 0 | L16: =IF(H16>0,ROUNDDOWN(H16,-1),0) -> 1500
A17: BuFaTa / FSR | B17: 0.5 | C17: 0 | D17: 0 | E17: =D17-C17 -> 0 | F17: 1000 | G17: 1000 | H17: =F17-G17 -> 0 | I17: 0 | J17: 0 | K17: =IF(OR(J17>I17,H17+I17<0),makro1(),ROUNDDOWN(I17-J17,-1)) -> 0 | L17: 0
A18: Quod licet Iovi, non licet bovi | B18: 1 | C18: 0 | D18: 0 | E18: =D18-C18 -> 0 | F18: 500 | G18: 0 | H18: =F18-G18 -> 500
A19: Gesamtsumme: | C19: =SUM(C16:C18) -> 0 | D19: 0 | E19: 0 | F19: 3000 | G19: 1000 | H19: 2000 | I19: =SUM(I16:I17) -> 0 | J19: =SUM(J16:J17) -> 0 | K19: =SUM(K16:K17) -> 0 | L19: =SUM(L16:L17) -> 1500

Sheet Finanzen
A1: Referat Finanzen | C1: Häufigkeit | D1: Einnahmen | G1: Ausgaben
D2: PLAN | E2: IST | F2: SALDO | G2: PLAN | H2: IST | I2: SALDO
A3: Kontoführung mit online-banking | B3: Sachkonto: 4970 | C3: 12 | D3: 0 | E3: 0 | F3: =E3-D3 -> 0 | G3: 400 | H3: 391.1 | I3: =G3-H3 -> 8.9
A4: Buchhaltungssoftware AGENDA | B4: Sachkonto: 4955 | C4: 12 | D4: 0 | E4: 0 | F4: =E4-D4 -> 0 | G4: 1000 | H4: 985.32 | I4: =G4-H4 -> 14.68
A5: Gesamtsumme: | D5: =SUM(D3:D4) -> 0 | E5: 0 | F5: 0 | G5: 1400 | H5: 1376.42 | I5: 23.58

Sheet Hochschulpolitik
A1: Referat Hochschulpolitik | B1: Häufigkeit | C1: Einnahmen | F1: Ausgaben | I1: nachrangig verwendbares Vj. Budget | J1: davon verwendet | K1: Zuführung "Fortgeschr. finanz. Mittel" | L1: Übertrag ins nächste HH-Jahr
C2: PLAN | D2: IST | E2: SALDO | F2: PLAN | G2: IST | H2: SALDO
A3: "festival contre le rasism" | B3: 1 | C3: 0 | D3: 0 | E3: =D3-C3 -> 0 | F3: 550 | G3: 0 | H3: =F3-G3 -> 550 | I3: 0 | J3: =IF(H3<0,IF(I3>0,H3*(-1),0),0) -> 0 | K3: =IF(OR(J3>I3,H3+I3<0),makro1(),ROUNDDOWN(I3-J3,-1)) -> 0 | L3: =IF(H3>0,ROUNDDOWN(H3,-1),0) -> 550
A4: Aktionstage gegen Sexismus und Homophobie | B4: 1 | C4: 0 | D4: 0 | E4: =D4-C4 -> 0 | F4: 550 | G4: 0 | H4: =F4-G4 -> 550 | I4: 0 | J4: =IF(H4<0,IF(I4>0,H4*(-1),0),0) -> 0 | K4: =IF(OR(J4>I4,H4+I4<0),makro1(),ROUNDDOWN(I4-J4,-1)) -> 0 | L4: =IF(H4>0,ROUNDDOWN(H4,-1),0) -> 550
A5: Aktionen, Festivals und Demonstrationen | C5: 0 | D5: 0 | E5: =D5-C5 -> 0 | F5: 750 | G5: 0 | H5: =F5-G5 -> 750 | I5: 0 | J5: 0 | K5: =IF(OR(J5>I5,H5+I5<0),makro1(),ROUNDDOWN(I5-J5,-1)) -> 0 | L5: 750
A6: Förderverein HTW Dresden - Mitgliedsbeitrag | B6: 1 | C6: 0 | D6: 0 | E6: =D6-C6 -> 0 | F6: 150 | G6: 150 | H6: =F6-G6 -> 0 | I6: 0 | J6: 0 | K6: =IF(OR(J6>I6,H6+I6<0),makro1(),ROUNDDOWN(I6-J6,-1)) -> 0 | L6: 0
A7: politische Bildung / Umweltbildung | C7: 0 | D7: 0 | E7: =D7-C7 -> 0 | F7: 1500 | G7: 350 | H7: =F7-G7 -> 1150 | I7: 0 | J7: 0 | K7: =IF(OR(J7>I7,H7+I7<0),makro1(),ROUNDDOWN(I7-J7,-1)) -> 0 | L7: 1150
A8: Gesamtsumme: | C8: =SUM(C3:C7) -> 0 | D8: 0 | E8: 0 | F8: 3500 | G8: 500 | H8: 3000 | I8: 0 | J8: 0 | K8: 0 | L8: 3000

Sheet Internationales
A1: Referat Internationales | B1: Häufigkeit | C1: Einnahmen | F1: Ausgaben | I1: nachrangig verwendbares Vj. Budget | J1: davon verwendet | K1: Zuführung "Fortgeschr. finanz. Mittel" | L1: Übertrag ins nächste HH-Jahr
C2: PLAN | D2: IST | E2: SALDO | F2: PLAN | G2: IST | H2: SALDO
A3: Erasmus Student Network | C3: 0 | D3: 0 | E3: =D3-C3 -> 0 | F3: 500 | G3: 0 | H3: =F3-G3 -> 500 | I3: 0 | J3: =IF(H3<0,IF(I3>0,H3*(-1),0),0) -> 0 | K3: =IF(OR(J3>I3,H3+I3<0),makro1(),ROUNDDOWN(I3-J3,-1)) -> 0 | L3: =IF(H3>0,ROUNDDOWN(H3,-1),0) -> 500
A4: DAAD Mitgliedsbeitrag | B4: 1 | C4: 0 | D4: 0 | E4: =D4-C4 -> 0 | F4: 50 | G4: 50 | H4: =F4-G4 -> 0 | I4: 0 | J4: =IF(H4<0,IF(I4>0,H4*(-1),0),0) -> 0 | K4: =IF(OR(J4>I4,H4+I4<0),makro1(),ROUNDDOWN(I4-J4,-1)) -> 0 | L4: =IF(H4>0,ROUNDDOWN(H4,-1),0) -> 0
A5: Internationaler Tag | B5: 2 | C5: 0 | D5: 0 | E5: =D5-C5 -> 0 | F5: 500 | G5: 35.18 | H5: =F5-G5 -> 464.82 | I5: 0 | J5: 0 | K5: =IF(OR(J5>I5,H5+I5<0),makro1(),ROUNDDOWN(I5-J5,-1)) -> 0 | L5: 460
A6: Gesamtsumme: | C6: =SUM(C3:C5) -> 0 | D6: 0 | E6: 0 | F6: 1050 | G6: 85.18 | H6: 964.82 | I6: =SUM(I3:I5) -> 0 | J6: =SUM(J3:J5) -> 0 | K6: =SUM(K3:K5) -> 0 | L6: =SUM(L3:L5) -> 960

Sheet Kultur
A1: Referat Kultur | B1: Häufigkeit | C1: Einnahmen | F1: Ausgaben | I1: nachrangig verwendbares Vj. Budget | J1: davon verwendet | K1: Zuführung "Fortgeschr. finanz. Mittel" | L1: Übertrag ins nächste HH-Jahr
C2: PLAN | D2: IST | E2: SALDO | F2: PLAN | G2: IST | H2: SALDO
A3: Semestereröffnungsparty (SEP) | B3: 2 | C3: 2000 | D3: 2116 | E3: =D3-C3 -> 116 | F3: 3000 | G3: 560.35 | H3: =F3-G3 -> 2439.65 | I3: 0 | J3: =IF(H3<0,IF(I3>0,H3*(-1),0),0) -> 0 | K3: =IF(OR(J3>I3,H3+I3<0),makro1(),ROUNDDOWN(I3-J3,-1)) -> 0 | L3: =IF(H3>0,ROUNDDOWN(H3,-1),0) -> 2430
A4: Kino in der Hochschule | C4: 550 | D4: 1166 | E4: 616 | F4: 1200 | G4: 928.07 | H4: 271.93 | I4: 0 | J4: =IF(H4<0,IF(I4>0,H4*(-1),0),0) -> 0 | K4: =IF(OR(J4>I4,H4+I4<0),makro1(),ROUNDDOWN(I4-J4,-1)) -> 0 | L4: =IF(H4>0,ROUNDDOWN(H4,-1),0) -> 270
A5: Rock am Pavillon (Erstival 2018) | B5: 1 | C5: 1000 | D5: 0 | E5: -1000 | F5: 2650 | G5: 1203.48 | H5: 1446.52 | I5: 0 | J5: 0 | K5: =IF(OR(J5>I5,H5+I5<0),makro1(),ROUNDDOWN(I5-J5,-1)) -> 0 | L5: 1440
A6: Dies Academicus | B6: 1 | C6: 0 | D6: 0 | E6: 0 | F6: 350 | G6: 350 | H6: 0 | I6: 0 | J6: =IF(H6<0,IF(I6>0,H6*(-1),0),0) -> 0 | K6: =IF(OR(J6>I6,H6+I6<0),makro1(),ROUNDDOWN(I6-J6,-1)) -> 0 | L6: =IF(H6>0,ROUNDDOWN(H6,-1),0) -> 0
A7: LAN-Partys | B7: 2 | C7: 300 | D7: 433.09 | E7: 133.09 | F7: 800 | G7: 234.97 | H7: 565.03 | I7: 0 | J7: 0 | K7: =IF(OR(J7>I7,H7+I7<0),makro1(),ROUNDDOWN(I7-J7,-1)) -> 0 | L7: 560
A8: Zuschuss SEP FSR | C8: 0 | D8: 0 | E8: 0 | F8: 0 | G8: 59.4 | H8: -59.4 | I8: 0 | J8: =IF(H8<0,IF(I8>0,H8*(-1),0),0) -> 0 | K8: =IF(OR(J8>I8,H8+I8<0),makro1(),ROUNDDOWN(I8-J8,-1)) -> 0 | L8: 0
A9: Erstsemestereinführung (ESE) durch StuRa | B9: 1 | C9: 2500 | D9: 2880.46 | E9: 380.46 | F9: 8000 | G9: 7250.68 | H9: 749.32 | I9: 0 | J9: 0 | K9: =IF(OR(J9>I9,H9+I9<0),makro1(),ROUNDDOWN(I9-J9,-1)) -> 0 | L9: 740
A10: Gesamtsumme: | C10: =SUM(C3:C9) -> 6350 | D10: 6595.55 | E10: 245.55 | F10: 16000 | G10: =SUM(G3:G9) -> 10586.95 | H10: 5413.05 | I10: =SUM(I3:I9) -> 0 | J10: =SUM(J3:J9) -> 0 | K10: =SUM(K3:K9) -> 0 | L10: =SUM(L3:L9) -> 5440

Sheet Öffentlichkeitsarbeit
A1: Referat Öffentlichkeitsarbeit | B1: Häufigkeit | C1: Einnahmen | F1: Ausgaben | I1: nachrangig verwendbares Vj. Budget | J1: davon verwendet | K1: Zuführung "Fortgeschr. finanz. Mittel" | L1: Übertrag ins nächste HH-Jahr
C2: PLAN | D2: IST | E2: SALDO | F2: PLAN | G2: IST | H2: SALDO
A3: Druck Hochschul-ABC (Anteilig) | B3: 1 | C3: 0 | D3: 0 | E3: =D3-C3 -> 0 | F3: 833 | G3: 833 | H3: =F3-G3 -> 0 | I3: 0 | J3: =IF(H3<0,IF(I3>0,H3*(-1),0),0) -> 0 | K3: =IF(OR(J3>I3,H3+I3<0),makro1(),ROUNDDOWN(I3-J3,-1)) -> 0 | L3: =IF(H3>0,ROUNDDOWN(H3,-1),0) -> 0
A4: Hochschulveranstaltungen | C4: 0 | D4: 0 | E4: =D4-C4 -> 0 | F4: 0 | G4: 0 | H4: =F4-G4 -> 0 | I4: 0 | J4: =IF(H4<0,IF(I4>0,H4*(-1),0),0) -> 0 | K4: =IF(OR(J4>I4,H4+I4<0),makro1(),ROUNDDOWN(I4-J4,-1)) -> 0 | L4: =IF(H4>0,ROUNDDOWN(H4,-1),0) -> 0
A5: Werbemittel | C5: 0 | D5: 0 | E5: =D5-C5 -> 0 | F5: 1822 | G5: 478.74 | H5: =F5-G5 -> 1343.26 | I5: 0 | J5: 0 | K5: =IF(OR(J5>I5,H5+I5<0),makro1(),ROUNDDOWN(I5-J5,-1)) -> 0 | L5: 1340
A6: Interessiertengrillen | B6: 2 | C6: 0 | D6: 0 | E6: =D6-C6 -> 0 | F6: 245 | G6: 244.42 | H6: =F6-G6 -> 0.58 | I6: 0 | J6: 0 | K6: =IF(OR(J6>I6,H6+I6<0),makro1(),ROUNDDOWN(I6-J6,-1)) -> 0 | L6: 0
A7: Merchandise | C7: 600 | D7: 464 | E7: =D7-C7 -> -136 | F7: 1800 | G7: 1475.12 | H7: =F7-G7 -> 324.88 | I7: 0 | J7: 0 | K7: =IF(OR(J7>I7,H7+I7<0),makro1(),ROUNDDOWN(I7-J7,-1)) -> 0 | L7: 320
A8: Gesamtsumme: | C8: =SUM(C3:C7) -> 600 | D8: 464 | E8: -136 | F8: 4700 | G8: 3031.28 | H8: 1668.72 | I8: =SUM(I3:I7) -> 0 | J8: =SUM(J3:J7) -> 0 | K8: =SUM(K3:K7) -> 0 | L8: =SUM(L3:L7) -> 1660

Sheet Qualitätsmanagement
A1: Referat Qualitätsmanagement | B1: Häufigkeit | C1: Einnahmen | F1: Ausgaben | I1: nachrangig verwendbares Vj. Budget | J1: davon verwendet | K1: Zuführung "Fortgeschr. finanz. Mittel" | L1: Übertrag ins nächste HH-Jahr
C2: PLAN | D2: IST | E2: SALDO | F2: PLAN | G2: IST | H2: SALDO
A3: Quod licet Iovi, non licet bovi | C3: 0 | D3: 0 | E3: =D3-C3 -> 0 | F3: 500 | G3: 0 | H3: =F3-G3 -> 500
A4: Gesamtsumme: | C4: =SUM(C3:C3) -> 0 | D4: 0 | E4: 0 | F4: 500 | G4: 0 | H4: 500 | I4: =SUM(I3) -> 0 | J4: =SUM(J3) -> 0 | K4: =SUM(K3) -> 0 | L4: =SUM(L3) -> 0

Sheet Soziales
A1: Referat Soziales | B1: Häufigkeit | C1: Einnahmen | F1: Ausgaben | I1: nachrangig verwendbares Vj. Budget | J1: davon verwendet | K1: Zuführung "Fortgeschr. finanz. Mittel" | L1: Übertrag ins nächste HH-Jahr
C2: PLAN | D2: IST | E2: SALDO | F2: PLAN | G2: IST | H2: SALDO
A3: Projekt "Studieren mit Kind" | C3: 0 | D3: 0 | E3: =D3-C3 -> 0 | F3: 200 | G3: 0 | H3: =F3-G3 -> 200 | I3: 0 | J3: =IF(H3<0,IF(I3>0,H3*(-1),0),0) -> 0 | K3: =IF(OR(J3>I3,H3+I3<0),makro1(),ROUNDDOWN(I3-J3,-1)) -> 0 | L3: =IF(H3>0,ROUNDDOWN(H3,-1),0) -> 200
A4: Studenten gegen Blutkrebs AIAS Dresden e.V. | C4: 0 | D4: 0 | E4: =D4-C4 -> 0 | F4: 1000 | G4: 1000 | H4: =F4-G4 -> 0 | I4: 0 | J4: =IF(H4<0,IF(I4>0,H4*(-1),0),0) -> 0 | K4: =IF(OR(J4>I4,H4+I4<0),makro1(),ROUNDDOWN(I4-J4,-1)) -> 0 | L4: =IF(H4>0,ROUNDDOWN(H4,-1),0) -> 0
A5: Quod licet Iovi, non licet bovi | C5: 0 | D5: 0 | E5: 0 | F5: 300 | G5: 0 | H5: 300
A6: Gesamtsumme: | C6: =SUM(C3:C5) -> 0 | D6: 0 | E6: 0 | F6: 1500 | G6: 1000 | H6: 500 | I6: =SUM(I3:I5) -> 0 | J6: =SUM(J3:J5) -> 0 | K6: =SUM(K3:K5) -> 0 | L6: =SUM(L3:L5) -> 200

Sheet Sport
A1: Referat Sport | B1: Häufigkeit | C1: Einnahmen | F1: Ausgaben | I1: nachrangig verwendbares Vj. Budget | J1: davon verwendet | K1: Zuführung "Fortgeschr. finanz. Mittel" | L1: Übertrag ins nächste HH-Jahr
C2: PLAN | D2: IST | E2: SALDO | F2: PLAN | G2: IST | H2: SALDO
A3: Tuniere, Preise, Beiträge | C3: 0 | D3: 0 | E3: =D3-C3 -> 0 | F3: 1500 | G3: 227.67 | H3: =F3-G3 -> 1272.33 | I3: 0 | J3: =IF(H3<0,IF(I3>0,H3*(-1),0),0) -> 0 | K3: =IF(OR(J3>I3,H3+I3<0),makro1(),ROUNDDOWN(I3-J3,-1)) -> 0 | L3: =IF(H3>0,ROUNDDOWN(H3,-1),0) -> 1270
A4: Startgebühren | B4: 1 | C4: 0 | D4: 0 | E4: 0 | F4: 600 | G4: 12 | H4: 588 | I4: 0 | J4: =IF(H4<0,IF(I4>0,H4*(-1),0),0) -> 0 | K4: =IF(OR(J4>I4,H4+I4<0),makro1(),ROUNDDOWN(I4-J4,-1)) -> 0 | L4: =IF(H4>0,ROUNDDOWN(H4,-1),0) -> 580
A5: Drachenbootrennen | B5: 1 | C5: 0 | D5: 0 | E5: 0 | F5: 0 | G5: 0 | H5: 0 | I5: 0 | J5: 0 | K5: =IF(OR(J5>I5,H5+I5<0),makro1(),ROUNDDOWN(I5-J5,-1)) -> 0 | L5: 0
A6: sächsische Beachmeisterschaften | B6: 1 | C6: 0 | D6: 0 | E6: 0 | F6: 0 | G6: 0 | H6: 0 | I6: 0 | J6: 0 | K6: =IF(OR(J6>I6,H6+I6<0),makro1(),ROUNDDOWN(I6-J6,-1)) -> 0 | L6: 0
A7: Hochschulsportfest | B7: 1 | C7: 0 | D7: 0 | E7: 0 | F7: 300 | G7: 0 | H7: 300 | I7: 0 | J7: =IF(H7<0,IF(I7>0,H7*(-1),0),0) -> 0 | K7: =IF(OR(J7>I7,H7+I7<0),makro1(),ROUNDDOWN(I7-J7,-1)) -> 0 | L7: =IF(H7>0,ROUNDDOWN(H7,-1),0) -> 300
A8: Werbung | C8: 0 | D8: 0 | E8: 0 | F8: 0 | G8: 0 | H8: 0 | I8: 0 | J8: 0 | K8: =IF(OR(J8>I8,H8+I8<0),makro1(),ROUNDDOWN(I8-J8,-1)) -> 0 | L8: 0
A9: Gesamtsumme: | C9: =SUM(C3:C8) -> 0 | D9: 0 | E9: 0 | F9: 2400 | G9: 239.67 | H9: 2160.33 | I9: =SUM(I3:I8) -> 0 | J9: =SUM(J3:J8) -> 0 | K9: =SUM(K3:K8) -> 0 | L9: =SUM(L3:L8) -> 2150

Sheet Studium
A1: Referat Studium | B1: Häufigkeit | C1: Einnahmen | F1: Ausgaben | I1: nachrangig verwendbares Vj. Budget | J1: davon verwendet | K1: Zuführung "Fortgeschr. finanz. Mittel" | L1: Übertrag ins nächste HH-Jahr
C2: PLAN | D2: IST | E2: SALDO | F2: PLAN | G2: IST | H2: SALDO
A3: Kompetenzorientiertes Prüfen | C3: 0 | D3: 0 | E3: =D3-C3 -> 0 | F3: 0 | G3: 0 | H3: =F3-G3 -> 0 | I3: 0 | J3: =IF(H3<0,IF(I3>0,H3*(-1),0),0) -> 0 | K3: =IF(OR(J3>I3,H3+I3<0),makro1(),ROUNDDOWN(I3-J3,-1)) -> 0 | L3: =IF(H3>0,ROUNDDOWN(H3,-1),0) -> 0
A4: Systemakkreditierung, was nun? | C4: 0 | D4: 0 | E4: =D4-C4 -> 0 | F4: 0 | G4: 0 | H4: =F4-G4 -> 0 | I4: 0 | J4: =IF(H4<0,IF(I4>0,H4*(-1),0),0) -> 0 | K4: =IF(OR(J4>I4,H4+I4<0),makro1(),ROUNDDOWN(I4-J4,-1)) -> 0 | L4: =IF(H4>0,ROUNDDOWN(H4,-1),0) -> 0
A5: Quod licet Iovi, non licet bovi | C5: 0 | D5: 0 | E5: =D5-C5 -> 0 | F5: 500 | G5: 0 | H5: =F5-G5 -> 500
A6: Gesamtsumme: | C6: =SUM(C3:C5) -> 0 | D6: 0 | E6: 0 | F6: 500 | G6: 0 | H6: 500 | I6: =SUM(I3:I4) -> 0 | J6: =SUM(J3:J4) -> 0 | K6: =SUM(K3:K4) -> 0 | L6: =SUM(L3:L4) -> 0

Sheet Studentische Verwaltung
A1: Referat Verwaltung | B1: Häufigkeit | C1: Einnahmen | F1: Ausgaben | I1: nachrangig verwendbares Vj. Budget | J1: davon verwendet | K1: Zuführung "Fortgeschr. finanz. Mittel" | L1: Übertrag ins nächste HH-Jahr
C2: PLAN | D2: IST | E2: SALDO | F2: PLAN | G2: IST | H2: SALDO
A3: Telefon | C3: 0 | D3: 0 | E3: =D3-C3 -> 0 | F3: 100 | G3: 0 | H3: =F3-G3 -> 100 | I3: 0 | J3: =IF(H3<0,IF(I3>0,H3*(-1),0),0) -> 0 | K3: =IF(OR(J3>I3,H3+I3<0),makro1(),ROUNDDOWN(I3-J3,-1)) -> 0 | L3: =IF(H3>0,ROUNDDOWN(H3,-1),0) -> 100
A4: Domains | C4: 0 | D4: 0 | E4: =D4-C4 -> 0 | F4: 50 | G4: 23.25 | H4: =F4-G4 -> 26.75 | I4: 0 | J4: =IF(H4<0,IF(I4>0,H4*(-1),0),0) -> 0 | K4: =IF(OR(J4>I4,H4+I4<0),makro1(),ROUNDDOWN(I4-J4,-1)) -> 0 | L4: =IF(H4>0,ROUNDDOWN(H4,-1),0) -> 20
A5: Werbung für Wahlen | B5: 2 | C5: 0 | D5: 0 | E5: 0 | F5: 300 | G5: 0 | H5: 300 | I5: 0 | J5: 0 | K5: =IF(OR(J5>I5,H5+I5<0),makro1(),ROUNDDOWN(I5-J5,-1)) -> 0 | L5: 300
A6: Beitrag Gruppenausweis für Jugendherbergen | B6: 1 | C6: 0 | D6: 0 | E6: 0 | F6: 35 | G6: 26 | H6: 9 | I6: 0 | J6: 0 | K6: =IF(OR(J6>I6,H6+I6<0),makro1(),ROUNDDOWN(I6-J6,-1)) -> 0 | L6: 0
A7: Labeldrucker (für die ISIC-Ausweise) | B7: 1 | C7: 0 | D7: 0 | E7: 0 | F7: 0 | G7: 0 | H7: 0 | I7: 0 | J7: 0 | K7: =IF(OR(J7>I7,H7+I7<0),makro1(),ROUNDDOWN(I7-J7,-1)) -> 0 | L7: 0
A8: ISIC | C8: 300 | D8: 270 | E8: -30 | F8: 600 | G8: 0 | H8: 600 | I8: 0 | J8: =IF(H8<0,IF(I8>0,H8*(-1),0),0) -> 0 | K8: =IF(OR(J8>I8,H8+I8<0),makro1(),ROUNDDOWN(I8-J8,-1)) -> 0 | L8: =IF(H8>0,ROUNDDOWN(H8,-1),0) -> 600
A9: Beiträge/Gebühren | C9: 0 | D9: 0 | E9: 0 | F9: 0 | G9: 0 | H9: 0 | I9: 0 | J9: 0 | K9: =IF(OR(J9>I9,H9+I9<0),makro1(),ROUNDDOWN(I9-J9,-1)) -> 0 | L9: 0
A10: Büromaterial/-ausstattung | C10: 0 | D10: 0 | E10: 0 | F10: 500 | G10: 53.15 | H10: 446.85 | I10: 0 | J10: 0 | K10: =IF(OR(J10>I10,H10+I10<0),makro1(),ROUNDDOWN(I10-J10,-1)) -> 0 | L10: 440
A11: laufende Kosten (Druck, Wartung) | C11: 0 | D11: 0 | E11: 0 | F11: 1000 | G11: 462.43 | H11: 537.57 | I11: 0 | J11: 0 | K11: =IF(OR(J11>I11,H11+I11<0),makro1(),ROUNDDOWN(I11-J11,-1)) -> 0 | L11: 530
A12: Gesamtsumme: | C12: =SUM(C3:C11) -> 300 | D12: 270 | E12: -30 | F12: 2585 | G12: 564.83 | H12: 2020.17 | I12: =SUM(I3:I11) -> 0 | J12: =SUM(J3:J11) -> 0 | K12: =SUM(K3:K11) -> 0 | L12: =SUM(L3:L11) -> 1990
